bitfinex/quotes_BTCUSD_20241130
["timestamp","ask_amount","ask_price","bid_price","bid_amount"]
[1732944415399,0.10420115,96926.0,96925.0,0.34985757]
[1732944415901,0.09720115,96926.0,96925.0,0.34885757]
[1732944416133,0.10320115,96926.0,96925.0,0.34985757]
[1732944437348,0.10320115,96926.0,96925.0,0.30435757]
[1732944437917,0.10320115,96926.0,96925.0,0.29761721]
[1732944438120,0.10320115,96926.0,96925.0,0.22575757]
[1732944441988,0.10320115,96926.0,96925.0,0.12258557]
[1732944442197,0.10320115,96926.0,96925.0,0.11258557]
[1732944442398,0.10320115,96926.0,96925.0,0.12258557]
[1732944442844,0.10285234,96926.0,96925.0,0.22575757]
[1732944443074,0.10285234,96926.0,96925.0,0.12258557]
[1732944444838,0.10285234,96926.0,96925.0,0.22575757]
[1732944445035,0.10285234,96926.0,96925.0,0.11258557]
[1732944445274,0.10285234,96926.0,96925.0,0.12258557]
[1732944445494,0.10285234,96926.0,96925.0,0.22575757]
[1732944459846,0.10285234,96926.0,96925.0,0.12258557]
[1732944462923,0.20602334,96926.0,96925.0,0.12258557]
[1732944463128,0.10285234,96926.0,96925.0,0.12258557]
[1732944467905,0.10285234,96926.0,96925.0,0.12431677]
[1732944468792,0.20602334,96926.0,96925.0,0.12431677]
[1732944470046,0.10285234,96926.0,96925.0,0.12431677]
[1732944470900,0.20602334,96926.0,96925.0,0.12431677]
[1732944478985,0.20602334,96926.0,96925.0,0.11757641]
[1732944479403,0.20602334,96926.0,96925.0,0.10757641]
[1732944479606,0.20602334,96926.0,96925.0,0.11757641]
[1732944480220,0.20602334,96926.0,96925.0,0.12431677]
[1732944480439,0.20602334,96926.0,96925.0,0.11757641]
[1732944480648,0.20602334,96926.0,96925.0,0.10757641]
[1732944483481,0.20002334,96926.0,96925.0,0.10657641]
[1732944483688,0.20402334,96926.0,96925.0,0.10657641]
[1732944484135,0.20002334,96926.0,96925.0,0.10457641]
[1732944484555,0.20202334,96926.0,96925.0,0.12257641]
[1732944486634,0.20202334,96926.0,96925.0,0.0197312]
[1732944488872,0.24882334,96926.0,96925.0,0.0197312]
[1732944497507,0.24782334,96926.0,96925.0,0.0107312]
[1732944497765,0.24882334,96926.0,96925.0,0.0167312]
[1732944497967,0.24782334,96926.0,96925.0,0.0077312]
[1732944498342,0.24882334,96926.0,96925.0,0.0147312]
[1732944498749,0.24982334,96926.0,96925.0,0.0217312]
[1732944498976,0.24882334,96926.0,96925.0,0.0157312]
[1732944499305,0.24882334,96926.0,96925.0,0.0217312]
[1732944499478,0.24982334,96926.0,96925.0,0.0217312]
[1732944511603,0.20302334,96926.0,96925.0,0.0217312]
[1732944581010,0.20302334,96926.0,96925.0,0.01978733]
[1732944582944,0.20302334,96926.0,96925.0,0.02151893]
[1732944589821,0.22602334,96926.0,96925.0,0.02151893]
[1732944610131,0.20302334,96926.0,96925.0,0.02151893]
[1732944610315,0.22602334,96926.0,96925.0,0.06671893]
[1732944628617,0.23696215,96926.0,96925.0,0.06671893]
[1732944632498,0.22602334,96926.0,96925.0,0.06671893]
[1732944635417,0.22602334,96926.0,96925.0,0.02151893]
[1732944636310,0.27592334,96926.0,96925.0,0.02151893]
[1732944638684,0.2868941,96926.0,96925.0,0.02151893]
[1732944641513,0.00325964,96924.0,96910.0,0.0017316]
[1732944641693,0.126187,96911.0,96910.0,0.0017316]
[1732944642162,0.22393199,96911.0,96910.0,0.0017316]
[1732944643246,0.22493199,96911.0,96910.0,0.0107316]
[1732944643901,0.22493199,96911.0,96910.0,0.0137316]
[1732944644336,0.22493199,96911.0,96910.0,0.0107316]
[1732944644569,0.22493199,96911.0,96910.0,0.0167316]
[1732944644798,0.22593199,96911.0,96910.0,0.0167316]
[1732944647226,0.22493199,96911.0,96910.0,0.0107316]
[1732944647407,0.22493199,96911.0,96910.0,0.0147316]
[1732944648033,0.22493199,96911.0,96910.0,0.0107316]
[1732944648262,0.22593199,96911.0,96910.0,0.0147316]
[1732944648510,0.22493199,96911.0,96910.0,0.0057316]
[1732944649501,0.22593199,96911.0,96910.0,0.0057316]
[1732944649718,0.22493199,96911.0,96910.0,0.0017316]
[1732944650377,0.22593199,96911.0,96910.0,0.0067316]
[1732944653115,0.22543973,96911.0,96910.0,0.0067316]
[1732944656654,0.37543973,96911.0,96910.0,0.0067316]
[1732944657095,0.35443973,96911.0,96910.0,0.0067316]
[1732944658810,0.35343973,96911.0,96910.0,0.0067316]
[1732944659043,0.35443973,96911.0,96910.0,0.0067316]
[1732944659260,0.35343973,96911.0,96910.0,0.0067316]
[1732944659514,0.35243973,96911.0,96910.0,0.0017316]
[1732944659933,0.35243973,96911.0,96910.0,0.0037316]
[1732944660157,0.35343973,96911.0,96910.0,0.0037316]
[1732944660365,0.35343973,96911.0,96910.0,0.0017316]
[1732944660575,0.35343973,96911.0,96910.0,0.0037316]
[1732944660985,0.35343973,96911.0,96910.0,0.0017316]
[1732944661441,0.35343973,96911.0,96910.0,0.0037316]
[1732944661852,0.35243973,96911.0,96910.0,0.0037316]
[1732944662113,0.35543973,96911.0,96910.0,0.0037316]
[1732944662789,0.35243973,96911.0,96910.0,0.0017316]
[1732944663221,0.35243973,96911.0,96910.0,0.0037316]
[1732944663683,0.35243973,96911.0,96910.0,0.0017316]
[1732944664119,0.35243973,96911.0,96910.0,0.0047316]
[1732944673875,0.35232973,96911.0,96910.0,0.0047316]
[1732944676730,0.35227505,96911.0,96910.0,0.0047316]
[1732944680987,0.40137505,96911.0,96910.0,0.0047316]
[1732944681871,0.40137505,96911.0,96910.0,0.0017316]
[1732944682306,0.40763469,96911.0,96910.0,0.0027316]
[1732944682761,0.40763469,96911.0,96893.0,0.0479]
[1732944682762,0.103222,96878.0,96877.0,0.0762]
[1732944682981,0.22431162,96878.0,96877.0,0.0762]
[1732944683184,0.22431162,96878.0,96877.0,0.1241]
[1732944684048,0.22439773,96878.0,96877.0,0.1241]
[1732944684772,0.22539773,96878.0,96877.0,0.1271]
[1732944685199,0.22539773,96878.0,96877.0,0.1241]
[1732944685516,0.22639773,96878.0,96877.0,0.1271]
[1732944686159,0.22539773,96878.0,96877.0,0.1241]
[1732944687281,0.22439773,96878.0,96877.0,0.1241]
[1732944687661,0.22539773,96878.0,96877.0,0.1241]
[1732944688065,0.22539773,96878.0,96877.0,0.1271]
[1732944688066,0.22639773,96878.0,96877.0,0.1271]
[1732944689654,0.23766346,96878.0,96877.0,0.1271]
[1732944690746,0.23766346,96878.0,96877.0,0.1288318]
[1732944692720,0.10017573,96878.0,96877.0,0.1288318]
[1732944692923,0.10017573,96878.0,96877.0,0.23167701]
[1732944695879,0.20339773,96878.0,96877.0,0.23167701]
[1732944696313,0.10017573,96878.0,96877.0,0.24167701]
[1732944696517,0.20339773,96878.0,96877.0,0.24167701]
[1732944697922,0.20339773,96878.0,96877.0,0.23667701]
[1732944700027,0.20339773,96878.0,96877.0,0.22667701]
[1732944700256,0.20339773,96878.0,96877.0,0.23667701]
[1732944701279,0.21446444,96878.0,96877.0,0.23667701]
[1732944702565,0.20339773,96878.0,96877.0,0.22667701]
[1732944702766,0.20339773,96878.0,96877.0,0.23667701]
[1732944703973,0.2025771,96878.0,96877.0,0.23667701]
[1732944707731,0.0993551,96878.0,96877.0,0.23667701]
[1732944707938,0.11010332,96878.0,96877.0,0.23667701]
[1732944708160,0.21332532,96878.0,96877.0,0.23667701]
[1732944708371,0.21332532,96878.0,96877.0,0.22667701]
[1732944708612,0.21332532,96878.0,96877.0,0.23667701]
[1732944712274,0.21332532,96878.0,96877.0,0.22667701]
[1732944712432,0.21332532,96878.0,96877.0,0.23667701]
[1732944712634,0.2025771,96878.0,96877.0,0.23667701]
[1732944712834,0.2025771,96878.0,96877.0,0.1338318]
[1732944715364,0.2025771,96878.0,96877.0,0.1238318]
[1732944715569,0.2025771,96878.0,96877.0,0.0047318]
[1732944715741,0.2255771,96878.0,96877.0,0.0047318]
[1732944715952,0.3755771,96878.0,96877.0,0.0047318]
[1732944716216,0.3764433,96878.0,96877.0,0.0047318]
[1732944719404,0.4522433,96878.0,96877.0,0.0047318]
[1732944720528,0.46299438,96878.0,96877.0,0.0047318]
[1732944720748,0.50879438,96878.0,96877.0,0.0047318]
[1732944721609,0.50679438,96878.0,96877.0,0.0017318]
[1732944722532,0.4960433,96878.0,96877.0,0.0037318]
[1732944723067,0.4980433,96878.0,96877.0,0.0017318]
[1732944723282,0.4960433,96878.0,96877.0,0.0047318]
[1732944724488,0.4960433,96878.0,96877.0,0.0017318]
[1732944724889,0.4960433,96878.0,96877.0,0.0047318]
[1732944727022,0.59887476,96878.0,96877.0,0.0047318]
[1732944727870,0.4960433,96878.0,96877.0,0.0047318]
[1732944728279,0.4960433,96878.0,96877.0,0.0017318]
[1732944728667,0.4960433,96878.0,96877.0,0.0047318]
[1732944729527,0.4960433,96878.0,96877.0,0.0017318]
[1732944730065,0.4990433,96878.0,96877.0,0.0017318]
[1732944731428,0.4990433,96878.0,96877.0,0.0027318]
[1732944732724,0.4990433,96878.0,96877.0,0.0017318]
[1732944733034,0.4990433,96878.0,96866.0,0.0017308]
[1732944733035,0.126234,96867.0,96866.0,0.0017308]
[1732944733235,0.22162767,96867.0,96866.0,0.0017308]
[1732944734772,0.22162767,96867.0,96866.0,0.0047308]
[1732944735742,0.24185099,96867.0,96866.0,0.0047308]
[1732944737026,0.39511063,96867.0,96866.0,0.0047308]
[1732944737664,0.48894369,96867.0,96866.0,0.0047308]
[1732944738283,0.39511063,96867.0,96866.0,0.0047308]
[1732944739230,0.39511063,96867.0,96860.0,0.0017308]
[1732944739231,0.12624,96861.0,96860.0,0.0017308]
[1732944739448,0.26848147,96861.0,96860.0,0.0017308]
[1732944740077,0.22098147,96861.0,96860.0,0.0017308]
[1732944740507,0.22198147,96861.0,96860.0,0.0017308]
[1732944741377,0.22298147,96861.0,96860.0,0.0017308]
[1732944741924,0.22198147,96861.0,96860.0,0.0017308]
[1732944742372,0.22398147,96861.0,96860.0,0.0017308]
[1732944765563,0.37398147,96861.0,96860.0,0.0017308]
[1732944770742,0.40524056,96861.0,96860.0,0.0017308]
[1732944775127,0.60871542,96861.0,96860.0,0.0017308]
[1732944775368,0.73321542,96861.0,96860.0,8e-07]
[1732944776925,0.63584541,96861.0,96860.0,8e-07]
[1732944786610,0.63584541,96861.0,96856.0,2e-07]
[1732944786611,0.10650364,96857.0,96856.0,2e-07]
[1732944786804,0.4837967,96857.0,96856.0,2e-07]
[1732944787799,0.4907967,96857.0,96856.0,2e-07]
[1732944788003,0.59362816,96857.0,96856.0,2e-07]
[1732944788442,0.59462816,96857.0,96856.0,2e-07]
[1732944788844,0.10651864,96843.0,96842.0,0.2598312]
[1732944789058,0.2287172,96843.0,96842.0,0.2598312]
[1732944789981,0.2287172,96843.0,96842.0,0.26042928]
[1732944793246,0.33156241,96843.0,96842.0,0.26042928]
[1732944794900,0.35210678,96843.0,96842.0,0.26042928]
[1732944795739,0.50210678,96843.0,96842.0,0.26042928]
[1732944796818,0.54345078,96843.0,96842.0,0.26042928]
[1732944797869,0.54445078,96843.0,96842.0,0.26042928]
[1732944809181,0.54445078,96843.0,96842.0,0.26027214]
[1732944810250,0.57567292,96843.0,96842.0,0.26027214]
[1732944815629,0.67850438,96843.0,96842.0,0.15701214]
[1732944815828,0.59275078,96843.0,96842.0,0.05375214]
[1732944816694,0.59175078,96843.0,96842.0,0.05375214]
[1732944816907,0.59175078,96843.0,96842.0,1.4e-07]
[1732944817106,0.59675078,96843.0,96842.0,1.4e-07]
[1732944818100,0.62799619,96843.0,96842.0,1.4e-07]
[1732944821688,0.62799619,96843.0,96842.0,0.00086594]
[1732944822147,0.73082765,96843.0,96842.0,0.00086594]
[1732944823735,0.62799619,96843.0,96842.0,0.00086594]
[1732944823980,0.57969619,96843.0,96842.0,0.00086594]
[1732944833977,0.58142799,96843.0,96842.0,0.00086594]
[1732944835114,0.27952264,96840.0,96828.0,0.0786316]
[1732944835319,0.52025126,96840.0,96839.0,0.00187194]
[1732944835913,0.5105685,96840.0,96839.0,0.00187194]
[1732944836110,0.5202514,96840.0,96839.0,0.00187194]
[1732944836313,0.5105685,96840.0,96839.0,0.00187194]
[1732944837212,0.5135685,96840.0,96839.0,0.00187194]
[1732944844119,0.52325396,96840.0,96839.0,0.00187194]
[1732944845414,0.52325529,96840.0,96839.0,0.00187194]
[1732944848998,0.52325523,96840.0,96839.0,0.00187194]
[1732944854280,0.02625964,96838.0,96837.0,0.0017312]
[1732944854485,0.52103868,96838.0,96837.0,0.00179098]
[1732944854695,0.70698903,96838.0,96837.0,0.00179098]
[1732944855082,0.70698246,96838.0,96837.0,0.00179098]
[1732944855213,0.70698246,96838.0,96837.0,9.8e-07]
[1732944855413,1.40698246,96838.0,96837.0,9.8e-07]
[1732944856318,1.40798246,96838.0,96837.0,9.8e-07]
[1732944856768,1.22103868,96838.0,96837.0,9.8e-07]
[1732944856969,1.41398246,96838.0,96837.0,9.8e-07]
[1732944857182,1.44950832,96838.0,96837.0,9.8e-07]
[1732944857396,1.49910832,96838.0,96837.0,9.8e-07]
[1732944857910,1.46458246,96838.0,96837.0,9.8e-07]
[1732944861251,1.27863868,96838.0,96837.0,9.8e-07]
[1732944863238,0.57863868,96838.0,96837.0,9.8e-07]
[1732944864273,0.10653064,96832.0,96831.0,0.0002]
[1732944864505,0.51959504,96832.0,96831.0,0.0002]
[1732944865338,0.00325964,96830.0,96829.0,0.00142105]
[1732944865534,0.39206458,96830.0,96829.0,0.00142105]
[1732944865744,0.51708253,96830.0,96829.0,0.00142105]
[1732944866344,0.25654064,96823.0,96822.0,0.1231]
[1732944866547,0.38299991,96823.0,96822.0,0.1231]
[1732944866957,0.48584512,96823.0,96822.0,0.1231]
[1732944867834,0.51710313,96823.0,96822.0,0.1231]
[1732944868542,0.51710313,96823.0,96822.0,0.0773]
[1732944868766,0.10654464,96819.0,96818.0,0.0497]
[1732944868969,0.3368551,96819.0,96818.0,0.0497]
[1732944869630,0.42685381,96819.0,96818.0,0.0497]
[1732944871993,0.3368551,96819.0,96818.0,0.0497]
[1732944877497,0.4868551,96819.0,96818.0,0.0497]
[1732944881431,0.4868551,96819.0,96818.0,0.0505659]
[1732944884644,0.48685011,96819.0,96818.0,0.0505659]
[1732944888066,0.48685072,96819.0,96818.0,0.0505659]
[1732944891582,0.47716837,96819.0,96818.0,0.0505659]
[1732944891788,0.4868522,96819.0,96818.0,0.0505659]
[1732944892437,0.47716837,96819.0,96818.0,0.0505659]
[1732944892650,0.48685273,96819.0,96818.0,0.0505659]
[1732944895281,0.48685511,96819.0,96818.0,0.0505659]
[1732944895917,0.48685511,96819.0,96818.0,0.0008659]
[1732944897525,0.51813466,96819.0,96818.0,0.0008659]
[1732944901424,0.51813784,96819.0,96818.0,0.0008659]
[1732944903700,0.41203299,96819.0,96818.0,0.0492659]
[1732944903937,0.38075344,96819.0,96818.0,0.0492659]
[1732944904173,0.37106352,96819.0,96818.0,0.0492659]
[1732944904399,0.40235271,96819.0,96818.0,0.0492659]
[1732944908005,0.40235271,96819.0,96818.0,0.0592659]
[1732944910710,0.40235271,96819.0,96818.0,0.0492659]
[1732944910939,0.40235271,96819.0,96818.0,0.0592659]
[1732944912014,0.4862452,96819.0,96818.0,0.0592659]
[1732944912447,0.4862452,96819.0,96818.0,0.0492659]
[1732944912664,0.40235271,96819.0,96818.0,0.0592659]
[1732944914062,0.40235271,96819.0,96818.0,0.0492659]
[1732944914267,0.40235271,96819.0,96818.0,0.0592659]
[1732944917584,0.37106352,96819.0,96818.0,0.0592659]
[1732944918255,0.19806352,96819.0,96818.0,0.1392659]
[1732944919770,0.22106352,96819.0,96818.0,0.1392659]
[1732944920589,0.22106352,96819.0,96818.0,0.1412659]
[1732944921235,0.11777852,96819.0,96818.0,0.1392659]
[1732944921461,0.11777852,96819.0,96818.0,0.35413747]
[1732944921462,0.09577852,96819.0,96818.0,0.35413747]
[1732944921705,0.09677852,96819.0,96818.0,0.35413747]
[1732944922890,0.09477852,96819.0,96818.0,0.35213747]
[1732944923107,0.09577852,96819.0,96818.0,0.35213747]
[1732944923330,0.09677852,96819.0,96818.0,0.35413747]
[1732944924329,0.09677852,96819.0,96818.0,0.25085147]
[1732944925625,0.09677852,96819.0,96818.0,0.35413747]
[1732944927038,0.09577852,96819.0,96818.0,0.35213747]
[1732944927934,0.09677852,96819.0,96818.0,0.35413747]
[1732944928149,0.09577852,96819.0,96818.0,0.35413747]
[1732944928351,0.09577852,96819.0,96818.0,0.35813747]
[1732944928352,0.09677852,96819.0,96818.0,0.35813747]
[1732944935561,0.09677852,96819.0,96818.0,0.35803994]
[1732944944343,0.09677852,96819.0,96818.0,0.36803994]
[1732944945197,0.09477852,96819.0,96818.0,0.36203994]
[1732944945677,0.11277852,96819.0,96818.0,0.36303994]
[1732944950235,0.11364432,96819.0,96818.0,0.36303994]
[1732944968974,0.11364432,96819.0,96818.0,0.13135394]
[1732944969850,0.11364432,96819.0,96818.0,0.23646783]
[1732944970044,0.11364432,96819.0,96818.0,0.23463994]
[1732944974746,0.11364432,96819.0,96818.0,0.36083994]
[1732944976378,0.11364432,96819.0,96818.0,0.39302046]
[1732944979701,0.11364432,96819.0,96818.0,0.40302046]
[1732944979933,0.11364432,96819.0,96818.0,0.4309531]
[1732944980355,0.10464432,96819.0,96818.0,0.4309531]
[1732944980564,0.09080348,96819.0,96818.0,0.40202046]
[1732944980778,0.09247024,96819.0,96818.0,0.5809531]
[1732944980981,0.10147024,96819.0,96818.0,0.5819531]
[1732944981234,0.10147024,96819.0,96818.0,0.55402046]
[1732944981438,0.11047024,96819.0,96818.0,0.55502046]
[1732944981645,0.09247024,96819.0,96818.0,0.55302046]
[1732944982288,0.08347024,96819.0,96818.0,0.55202046]
[1732944982500,0.09247024,96819.0,96818.0,0.55302046]
[1732944983373,0.10147024,96819.0,96818.0,0.55402046]
[1732944983883,0.10147024,96819.0,96818.0,0.5834492]
[1732944984950,0.05306979,96819.0,96818.0,0.61321745]
[1732944985131,0.09327524,96827.0,96826.0,0.03674036]
[1732944985337,0.001732,96828.0,96827.0,0.26621636]
[1732944985547,0.001732,96828.0,96827.0,0.40124209]
[1732944985769,0.001732,96828.0,96827.0,0.43067083]
[1732944986766,0.007732,96828.0,96827.0,0.43167083]
[1732944987076,0.08734865,96828.0,96827.0,0.43167083]
[1732944987361,0.016732,96828.0,96827.0,0.43267083]
[1732944987542,0.09634865,96828.0,96827.0,0.43267083]
[1732944989119,0.09634865,96828.0,96827.0,0.40324209]
[1732944990711,0.09634865,96828.0,96827.0,0.40311248]
[1732944991304,0.09634865,96828.0,96827.0,0.37106157]
[1732944992620,0.09634865,96828.0,96827.0,0.38188161]
[1732945000105,0.09634865,96828.0,96827.0,0.41059823]
[1732945000302,0.09634865,96828.0,96827.0,0.44002697]
[1732945001163,0.09634865,96828.0,96827.0,0.41131035]
[1732945001585,0.09634865,96828.0,96827.0,0.49507231]
[1732945001953,0.05503865,96828.0,96827.0,0.49507231]
[1732945002402,0.0018734,96838.0,96836.0,0.14000736]
[1732945002403,0.0795808,96837.0,96836.0,0.14000736]
[1732945002602,0.0018734,96838.0,96837.0,0.14000636]
[1732945002904,0.0018734,96838.0,96837.0,0.24467876]
[1732945003070,0.0814542,96838.0,96837.0,0.24285157]
[1732945003273,0.07340801,96838.0,96837.0,0.24285157]
[1732945003922,0.07940801,96838.0,96837.0,0.24385157]
[1732945005264,0.07940801,96838.0,96837.0,0.24485157]
[1732945007293,0.07940801,96838.0,96837.0,0.2769287]
[1732945009684,0.07940801,96838.0,96837.0,0.33457461]
[1732945009890,0.07940801,96838.0,96837.0,0.43525744]
[1732945010030,0.02908539,96838.0,96837.0,0.60825744]
[1732945010271,0.07039139,96838.0,96837.0,0.60825744]
[1732945010478,0.0017328,96861.0,96841.0,0.16300236]
[1732945010688,0.07218293,96842.0,96841.0,0.29975173]
[1732945010897,0.07218293,96842.0,96841.0,0.2979247]
[1732945012134,0.07218293,96842.0,96841.0,0.2989247]
[1732945013193,0.04242514,96842.0,96841.0,0.2999247]
[1732945017450,0.04242514,96842.0,96841.0,0.3490247]
[1732945019622,0.04242514,96842.0,96841.0,0.37006972]
[1732945021688,0.04242514,96842.0,96841.0,0.44986972]
[1732945022519,5e-07,96842.0,96841.0,0.62820184]
[1732945023167,0.0386534,96842.0,96841.0,0.65663058]
[1732945023393,0.0386534,96842.0,96841.0,0.65563058]
[1732945023776,0.0386534,96842.0,96841.0,0.65663058]
[1732945023979,0.0386534,96842.0,96841.0,0.65563058]
[1732945024224,4e-07,96842.0,96841.0,0.65563058]
[1732945024453,0.0017328,96861.0,96841.0,0.65563058]
[1732945024454,2e-07,96843.0,96842.0,0.49966122]
[1732945024677,2e-07,96843.0,96842.0,0.63458356]
[1732945024883,0.0386534,96855.0,96854.0,0.26628836]
[1732945025103,0.0017328,96861.0,96855.0,0.31298736]
[1732945025335,0.0017328,96861.0,96855.0,0.41583257]
[1732945026576,0.0017328,96861.0,96855.0,0.41683257]
[1732945027217,0.0017328,96861.0,96855.0,0.41783257]
[1732945028279,0.0017328,96861.0,96855.0,0.44991182]
[1732945030022,0.0017328,96861.0,96855.0,0.41783257]
[1732945030709,0.0017328,96861.0,96855.0,0.42869868]
[1732945032267,0.0017328,96861.0,96855.0,0.42769868]
[1732945032480,0.0017328,96861.0,96855.0,0.45878066]
[1732945032846,0.0017328,96861.0,96855.0,0.45978066]
[1732945033059,0.0017328,96861.0,96855.0,0.45878066]
[1732945033481,0.0017328,96861.0,96855.0,0.45978066]
[1732945034133,0.0017328,96861.0,96855.0,0.28778066]
[1732945034320,0.0465,96860.0,96855.0,0.27778066]
[1732945034544,0.0465,96860.0,96855.0,0.24569868]
[1732945034936,0.0465,96860.0,96855.0,0.23483257]
[1732945036426,0.0465,96860.0,96855.0,0.23283257]
[1732945036897,0.0465,96860.0,96855.0,0.23383257]
[1732945037111,0.0465,96860.0,96855.0,0.23283257]
[1732945037322,0.0465,96860.0,96855.0,0.23383257]
[1732945038411,0.0465,96860.0,96855.0,0.23283257]
[1732945038644,0.0077316,96856.0,96855.0,0.23383257]
[1732945038881,0.0127316,96856.0,96855.0,0.23483257]
[1732945039123,0.0067316,96856.0,96855.0,0.23283257]
[1732945039568,0.0177316,96856.0,96855.0,0.23483257]
[1732945042762,0.0177316,96856.0,96855.0,0.2769641]
[1732945042975,0.0177316,96856.0,96855.0,0.58475701]
[1732945044200,0.0177316,96856.0,96855.0,0.55619284]
[1732945045627,0.0177316,96856.0,96855.0,0.5267641]
[1732945049110,0.0177316,96856.0,96855.0,0.5751641]
[1732945049370,0.0117316,96856.0,96855.0,0.63215701]
[1732945049775,0.0017316,96856.0,96855.0,0.63115701]
[1732945049991,0.0017316,96856.0,96855.0,0.63215701]
[1732945050195,6e-07,96856.0,96855.0,0.63215701]
[1732945050405,6e-07,96856.0,96855.0,0.63115701]
[1732945050614,6e-07,96856.0,96855.0,0.63215701]
[1732945051188,6e-07,96856.0,96855.0,0.63115701]
[1732945051390,0.0017328,96861.0,96860.0,0.31298136]
[1732945051575,0.0017328,96861.0,96860.0,0.5773581]
[1732945052762,0.0017328,96861.0,96860.0,0.5783581]
[1732945052986,0.0017328,96861.0,96860.0,0.5793581]
[1732945054100,0.0017328,96861.0,96860.0,0.5783581]
[1732945054297,0.0017328,96861.0,96860.0,0.5773581]
[1732945054504,0.0017328,96861.0,96860.0,0.5783581]
[1732945055375,0.0017328,96861.0,96860.0,0.5773581]
[1732945055554,0.0017328,96861.0,96860.0,0.5783581]
[1732945055764,0.0017328,96861.0,96860.0,0.5773581]
[1732945056121,0.0017328,96861.0,96860.0,0.5783581]
[1732945058165,0.0017328,96861.0,96860.0,0.58910943]
[1732945060207,0.0017328,96861.0,96860.0,0.60970379]
[1732945060428,0.0017328,96861.0,96860.0,0.63826796]
[1732945063137,0.0017328,96861.0,96860.0,0.60970379]
[1732945064931,4e-07,96865.0,96864.0,0.44237736]
[1732945065146,4e-07,96865.0,96864.0,0.5773541]
[1732945065350,0.0017324,96877.0,96864.0,0.5773541]
[1732945065351,0.0017324,96877.0,96876.0,0.44236436]
[1732945065556,0.0017324,96877.0,96876.0,0.5773411]
[1732945066608,0.00233002,96877.0,96876.0,0.5773411]
[1732945067695,0.00233002,96877.0,96876.0,0.5783411]
[1732945068528,0.00233002,96877.0,96876.0,0.5793411]
[1732945071294,0.00233002,96877.0,96876.0,0.60024765]
[1732945072767,0.00233002,96877.0,96876.0,0.63990046]
[1732945073724,0.00233002,96877.0,96876.0,0.66749521]
[1732945073931,2.2e-07,96878.0,96877.0,0.46692753]
[1732945074175,4.3e-07,96878.0,96877.0,0.63049902]
[1732945075907,4.3e-07,96878.0,96877.0,0.63149902]
[1732945077217,4.3e-07,96878.0,96877.0,0.63249902]
[1732945077433,4.3e-07,96878.0,96877.0,0.60390427]
[1732945077874,4.3e-07,96878.0,96877.0,0.5753401]
[1732945078289,0.045,96907.0,96898.0,0.13994136]
[1732945078492,0.0809,96900.0,96898.0,0.24278657]
[1732945079843,0.0809,96900.0,96898.0,0.24478657]
[1732945080855,0.0809,96900.0,96898.0,0.23478657]
[1732945081055,0.045866,96899.0,96898.0,0.24478657]
[1732945081279,0.045866,96899.0,96898.0,0.23478657]
[1732945087425,0.123166,96899.0,96898.0,0.23478657]
[1732945091663,0.123166,96899.0,96898.0,0.22478657]
[1732945115063,0.045866,96899.0,96898.0,0.22478657]
[1732945115274,0.000866,96899.0,96898.0,0.22478657]
[1732945128298,0.000866,96899.0,96898.0,0.24571007]
[1732945129936,0.000866,96899.0,96898.0,0.22478657]
[1732945140559,0.000866,96899.0,96898.0,0.10484521]
[1732945140745,0.104066,96899.0,96898.0,0.12158557]
[1732945141906,0.000866,96899.0,96898.0,0.12158557]
[1732945143549,0.104066,96899.0,96898.0,0.12158557]
[1732945144405,0.000866,96899.0,96898.0,0.12158557]
[1732945145591,0.104066,96899.0,96898.0,0.12158557]
[1732945148049,0.000866,96899.0,96898.0,0.12158557]
[1732945148866,0.104066,96899.0,96898.0,0.12158557]
[1732945149300,0.000866,96899.0,96898.0,0.12158557]
[1732945150549,0.104066,96899.0,96898.0,0.12158557]
[1732945151747,0.104066,96899.0,96898.0,0.11484521]
[1732945153081,0.229766,96899.0,96898.0,0.012]
[1732945153287,0.229766,96899.0,96898.0,0.002]
[1732945153509,0.229766,96899.0,96898.0,0.012]
[1732945154400,0.229766,96899.0,96898.0,0.01]
[1732945154610,0.229766,96899.0,96898.0,0.027]
[1732945154820,0.229766,96899.0,96898.0,0.018]
[1732945155032,0.229766,96899.0,96898.0,0.01]
[1732945155229,0.229766,96899.0,96898.0,0.019]
[1732945155427,0.229766,96899.0,96898.0,0.017]
[1732945155881,0.229766,96899.0,96898.0,0.027]
[1732945158459,0.229766,96899.0,96898.0,0.017]
[1732945159259,0.229766,96899.0,96898.0,0.027]
[1732945166375,0.229766,96899.0,96898.0,0.017]
[1732945167525,0.252766,96899.0,96898.0,0.017]
[1732945167759,0.25602564,96899.0,96898.0,0.017]
[1732945170063,0.25602564,96899.0,96898.0,0.008]
[1732945170204,0.153015,96885.0,96884.0,0.01]
[1732945171212,0.103215,96885.0,96884.0,0.01]
[1732945171413,0.104215,96885.0,96884.0,0.018]
[1732945171615,0.105215,96885.0,96884.0,0.027]
[1732945186886,0.106081,96885.0,96884.0,0.027]
[1732945200998,0.002866,96885.0,96884.0,0.1499]
[1732945201684,0.002866,96885.0,96884.0,0.36270157]
[1732945203013,0.001866,96885.0,96884.0,0.36370157]
[1732945203232,0.000866,96885.0,96884.0,0.35370157]
[1732945203654,0.000866,96885.0,96884.0,0.36270157]
[1732945203871,0.000866,96885.0,96884.0,0.35470157]
[1732945204095,0.000866,96885.0,96884.0,0.36370157]
[1732945208428,0.206404,96897.0,96885.0,0.20643]
[1732945208654,0.103204,96895.0,96892.0,0.01]
[1732945208872,0.103204,96895.0,96892.0,0.11284521]
[1732945209666,0.10407,96895.0,96892.0,0.11284521]
[1732945210355,0.000866,96895.0,96892.0,0.12184521]
[1732945211436,0.000866,96895.0,96892.0,0.13084521]
[1732945212007,0.103206,96894.0,96892.0,0.13084521]
[1732945212217,0.103206,96893.0,96892.0,0.13084521]
[1732945212429,0.000866,96895.0,96892.0,0.13084521]
[1732945213058,0.103206,96893.0,96892.0,0.12184521]
[1732945213299,0.103206,96893.0,96892.0,0.11284521]
[1732945213735,0.103206,96893.0,96892.0,0.12184521]
[1732945213964,0.103206,96893.0,96892.0,0.17894521]
[1732945214184,0.103206,96893.0,96892.0,0.16994521]
[1732945214406,0.103206,96893.0,96892.0,0.13084521]
[1732945216563,0.000866,96895.0,96894.0,0.01674036]
[1732945216790,0.000866,96895.0,96894.0,0.3027171]
[1732945217036,0.000866,96895.0,96894.0,0.30089057]
[1732945217953,0.001866,96895.0,96894.0,0.30089057]
[1732945219054,0.001866,96895.0,96894.0,0.30189057]
[1732945219237,0.000866,96895.0,96894.0,0.30189057]
[1732945219565,0.000866,96895.0,96894.0,0.30289057]
[1732945220792,0.000866,96895.0,96894.0,0.32316776]
[1732945222061,0.000866,96895.0,96894.0,0.30289057]
[1732945224461,0.000866,96895.0,96894.0,0.19968557]
[1732945225565,0.000866,96895.0,96894.0,0.30289057]
[1732945225989,0.000866,96895.0,96894.0,0.19968557]
[1732945228243,0.000866,96895.0,96894.0,0.30289057]
[1732945228794,0.000866,96895.0,96894.0,0.19968557]
[1732945229604,0.104067,96899.0,96898.0,0.00674036]